[Event "Late-Titled-Tuesday-Blitz-August-29-2023"]
[Site "Chess.com"]
[Date "2023.08.29"]
[Round "5"]
[White "reevecanada"]
[Black "PepeCuenca"]
[Result "1-0"]
[WhiteElo "2549"]
[BlackElo "2715"]
[TimeControl "180+1"]
[EndTime "14:53:52 PDT"]
[Termination "reevecanada won on time"]

1. e4 {[%clk 0:02:59.1]} 1... c5 {[%clk 0:02:59.9]} 2. Nf3 {[%clk 0:02:58.2]}
2... Nc6 {[%clk 0:03:00.1]} 3. Bb5 {[%clk 0:02:57.2]} 3... e6 {[%clk 0:03:00.1]}
4. Bxc6 {[%clk 0:02:55]} 4... bxc6 {[%clk 0:03:00]} 5. b3 {[%clk 0:02:55]} 5...
Ne7 {[%clk 0:02:53.9]} 6. Bb2 {[%clk 0:02:54.6]} 6... f6 {[%clk 0:02:49.8]} 7.
h4 {[%clk 0:02:52.6]} 7... d5 {[%clk 0:02:42.8]} 8. d3 {[%clk 0:02:49.7]} 8...
e5 {[%clk 0:02:39.2]} 9. Nc3 {[%clk 0:02:46.9]} 9... Bg4 {[%clk 0:02:33.5]} 10.
h5 {[%clk 0:02:44.9]} 10... Nc8 {[%clk 0:01:57.7]} 11. Rh4 {[%clk 0:02:42.3]}
11... Be6 {[%clk 0:01:47.3]} 12. Qd2 {[%clk 0:02:35.2]} 12... Nb6 {[%clk
0:01:42.3]} 13. a4 {[%clk 0:02:30.6]} 13... a5 {[%clk 0:01:40.7]} 14. Ba3 {[%clk
0:02:24.3]} 14... Be7 {[%clk 0:01:37.5]} 15. Rh2 {[%clk 0:02:19.4]} 15... O-O
{[%clk 0:01:35.9]} 16. O-O-O {[%clk 0:02:18.9]} 16... c4 {[%clk 0:01:31.5]} 17.
Bxe7 {[%clk 0:02:18]} 17... Qxe7 {[%clk 0:01:31.9]} 18. exd5 {[%clk 0:02:16.1]}
18... cxd5 {[%clk 0:01:24.5]} 19. dxc4 {[%clk 0:02:14.8]} 19... Rab8 {[%clk
0:00:46.6]} 20. cxd5 {[%clk 0:02:06.7]} 20... Rfd8 {[%clk 0:00:21.4]} 21. d6
{[%clk 0:02:04.5]} 21... Qb7 {[%clk 0:00:20]} 22. Nb5 {[%clk 0:01:58.9]} 22...
Qc6 {[%clk 0:00:17.3]} 23. Kb2 {[%clk 0:01:56.2]} 23... Bc4 {[%clk 0:00:15.2]}
24. Qxa5 {[%clk 0:01:19.1]} 24... Be6 {[%clk 0:00:05.7]} 25. Qc3 {[%clk
0:01:15.7]} 25... Qb7 {[%clk 0:00:04.4]} 26. Qc7 {[%clk 0:01:13.4]} 26... Qe4
{[%clk 0:00:03.1]} 27. h6 {[%clk 0:01:11]} 27... gxh6 {[%clk 0:00:02.7]} 28. Rh4
{[%clk 0:01:06.8]} 28... Qf5 {[%clk 0:00:02.2]} 29. Rxh6 {[%clk 0:01:00.3]}
29... Rbc8 {[%clk 0:00:02]} 30. g4 {[%clk 0:00:56.3]} 30... Rxc7 {[%clk
0:00:01.9]} 31. gxf5 {[%clk 0:00:56.1]} 31... Rxc2+ {[%clk 0:00:01.3]} 32. Kxc2
{[%clk 0:00:55.2]} 32... Bxf5+ {[%clk 0:00:02.2]} 33. Kb2 {[%clk 0:00:55.9]} 1-0

[Event "Late-Titled-Tuesday-Blitz-August-29-2023"]
[Site "Chess.com"]
[Date "2023.08.29"]
[Round "5"]
[White "Rutricks"]
[Black "Haykoooo0o"]
[Result "1-0"]
[WhiteElo "2621"]
[BlackElo "2464"]
[TimeControl "180+1"]
[EndTime "14:53:56 PDT"]
[Termination "Rutricks won by checkmate"]

1. b3 {[%clk 0:02:50]} 1... d5 {[%clk 0:02:59.1]} 2. Bb2 {[%clk 0:02:49.7]} 2...
Bf5 {[%clk 0:02:59.1]} 3. Nf3 {[%clk 0:02:50.6]} 3... e6 {[%clk 0:02:59.3]} 4.
e3 {[%clk 0:02:51.5]} 4... Nf6 {[%clk 0:02:58.8]} 5. Be2 {[%clk 0:02:52]} 5...
h6 {[%clk 0:02:58.8]} 6. O-O {[%clk 0:02:52.7]} 6... Be7 {[%clk 0:02:58.9]} 7.
h3 {[%clk 0:02:53.4]} 7... O-O {[%clk 0:02:58.7]} 8. c4 {[%clk 0:02:54.2]} 8...
c6 {[%clk 0:02:59.2]} 9. Nc3 {[%clk 0:02:54.6]} 9... Bh7 {[%clk 0:02:59.3]} 10.
Rc1 {[%clk 0:02:54.9]} 10... Nbd7 {[%clk 0:02:59.7]} 11. d4 {[%clk 0:02:53.2]}
11... Rc8 {[%clk 0:02:57.4]} 12. Bd3 {[%clk 0:02:51.8]} 12... Bxd3 {[%clk
0:02:56.6]} 13. Qxd3 {[%clk 0:02:52.4]} 13... Re8 {[%clk 0:02:55.8]} 14. Rfd1
{[%clk 0:02:52.3]} 14... Qa5 {[%clk 0:02:54.4]} 15. e4 {[%clk 0:02:47.3]} 15...
dxe4 {[%clk 0:02:51]} 16. Nxe4 {[%clk 0:02:47.6]} 16... Nxe4 {[%clk 0:02:51.4]}
17. Qxe4 {[%clk 0:02:48]} 17... Nf6 {[%clk 0:02:47.4]} 18. Qc2 {[%clk
0:02:47.1]} 18... Ba3 {[%clk 0:02:36.9]} 19. Bc3 {[%clk 0:02:45.5]} 19... Bb4
{[%clk 0:02:30.6]} 20. Ba1 {[%clk 0:02:45.6]} 20... Red8 {[%clk 0:02:23.3]} 21.
Qe2 {[%clk 0:02:39.9]} 21... Qf5 {[%clk 0:02:17.7]} 22. Bb2 {[%clk 0:02:36]}
22... Qe4 {[%clk 0:02:12.6]} 23. Qe3 {[%clk 0:02:32.1]} 23... Qxe3 {[%clk
0:02:10.9]} 24. fxe3 {[%clk 0:02:33]} 24... Ne4 {[%clk 0:02:06.5]} 25. a3 {[%clk
0:02:31.2]} 25... Bd6 {[%clk 0:02:04.3]} 26. b4 {[%clk 0:02:31.6]} 26... a6
{[%clk 0:01:59.1]} 27. Rc2 {[%clk 0:02:32]} 27... Bg3 {[%clk 0:01:50.3]} 28. Kf1
{[%clk 0:02:30]} 28... Rd7 {[%clk 0:01:46.5]} 29. Ke2 {[%clk 0:02:30.1]} 29...
Rcd8 {[%clk 0:01:44.2]} 30. Rf1 {[%clk 0:02:28.7]} 30... Bc7 {[%clk 0:01:42.7]}
31. Rfc1 {[%clk 0:02:27.4]} 31... g5 {[%clk 0:01:37.4]} 32. Rd1 {[%clk
0:02:16.6]} 32... f5 {[%clk 0:01:33.7]} 33. Nd2 {[%clk 0:02:17.1]} 33... Nxd2
{[%clk 0:01:21.2]} 34. Rcxd2 {[%clk 0:02:18]} 34... Kf7 {[%clk 0:01:12]} 35. Kf3
{[%clk 0:02:18.5]} 35... h5 {[%clk 0:01:10.9]} 36. g4 {[%clk 0:02:18.3]} 36...
fxg4+ {[%clk 0:01:08.7]} 37. hxg4 {[%clk 0:02:18.9]} 37... h4 {[%clk 0:01:09.4]}
38. Ke4 {[%clk 0:02:09.9]} 38... Kg6 {[%clk 0:00:59.6]} 39. Rf1 {[%clk
0:02:05.8]} 39... Rf7 {[%clk 0:00:53.7]} 40. Rh1 {[%clk 0:02:06]} 40... Rdf8
{[%clk 0:00:47.2]} 41. d5 {[%clk 0:02:06.2]} 41... exd5+ {[%clk 0:00:44.2]} 42.
cxd5 {[%clk 0:02:07.1]} 42... Re8+ {[%clk 0:00:44]} 43. Kd3 {[%clk 0:02:07.6]}
43... Rd7 {[%clk 0:00:27.1]} 44. Rf2 {[%clk 0:01:56.7]} 44... Rxd5+ {[%clk
0:00:24.1]} 45. Kc2 {[%clk 0:01:57.4]} 45... Be5 {[%clk 0:00:19.2]} 46. Bxe5
{[%clk 0:01:58]} 46... Rdxe5 {[%clk 0:00:19.3]} 47. Rhf1 {[%clk 0:01:58.8]}
47... R5e6 {[%clk 0:00:16.7]} 48. Rf7 {[%clk 0:01:59.3]} 48... R8e7 {[%clk
0:00:16.9]} 49. Rf8 {[%clk 0:01:59.6]} 49... Rxe3 {[%clk 0:00:16.6]} 50. Rg8+
{[%clk 0:01:51.3]} 50... Rg7 {[%clk 0:00:16]} 51. Rh8 {[%clk 0:01:51.5]} 51...
Re4 {[%clk 0:00:14.6]} 52. Rd1 {[%clk 0:01:49.9]} 52... Re6 {[%clk 0:00:12.7]}
53. Rdd8 {[%clk 0:01:47.7]} 53... Kf6 {[%clk 0:00:12]} 54. Kd3 {[%clk
0:01:46.8]} 54... Ke5 {[%clk 0:00:12.2]} 55. Rhf8 {[%clk 0:01:45.1]} 55... Rge7
{[%clk 0:00:05.4]} 56. Rf5# {[%clk 0:01:45.1]} 1-0

[Event "Late-Titled-Tuesday-Blitz-August-29-2023"]
[Site "Chess.com"]
[Date "2023.08.29"]
[Round "5"]
[White "ExchangeAB"]
[Black "Mesa_1"]
[Result "1/2-1/2"]
[WhiteElo "2433"]
[BlackElo "2560"]
[TimeControl "180+1"]
[EndTime "14:53:59 PDT"]
[Termination "Game drawn by repetition"]

1. d4 {[%clk 0:03:00.9]} 1... d6 {[%clk 0:02:51.6]} 2. e4 {[%clk 0:03:00.6]}
2... Nf6 {[%clk 0:02:51.9]} 3. Nc3 {[%clk 0:03:00.8]} 3... Nc6 {[%clk
0:02:52.3]} 4. Nf3 {[%clk 0:03:00.6]} 4... g6 {[%clk 0:02:51.9]} 5. h3 {[%clk
0:02:59.8]} 5... Bg7 {[%clk 0:02:51.5]} 6. Be3 {[%clk 0:03:00.1]} 6... O-O
{[%clk 0:02:52.2]} 7. Qd2 {[%clk 0:03:00.4]} 7... a6 {[%clk 0:02:52]} 8. Bh6
{[%clk 0:03:00.4]} 8... b5 {[%clk 0:02:50.3]} 9. Bxg7 {[%clk 0:02:59.5]} 9...
Kxg7 {[%clk 0:02:51.2]} 10. Bd3 {[%clk 0:02:58]} 10... Bb7 {[%clk 0:02:46.3]}
11. Ne2 {[%clk 0:02:57.5]} 11... e5 {[%clk 0:02:38.3]} 12. d5 {[%clk 0:02:54.2]}
12... Ne7 {[%clk 0:02:37]} 13. Ng3 {[%clk 0:02:53.7]} 13... Nexd5 {[%clk
0:02:24]} 14. exd5 {[%clk 0:02:53.2]} 14... e4 {[%clk 0:02:24.9]} 15. Bxe4
{[%clk 0:02:41.6]} 15... Re8 {[%clk 0:02:12.8]} 16. Qd4 {[%clk 0:02:35.9]} 16...
Bxd5 {[%clk 0:02:07.8]} 17. O-O {[%clk 0:02:32.2]} 17... Bxe4 {[%clk 0:02:05.9]}
18. Ng5 {[%clk 0:02:20.2]} 18... Bb7 {[%clk 0:01:56.7]} 19. Rfe1 {[%clk
0:02:10.5]} 19... h6 {[%clk 0:01:47.1]} 20. Rxe8 {[%clk 0:02:04]} 20... Qxe8
{[%clk 0:01:48]} 21. Nh7 {[%clk 0:01:47.3]} 21... Qe5 {[%clk 0:01:48.2]} 22.
Qxe5 {[%clk 0:01:46.3]} 22... dxe5 {[%clk 0:01:48.1]} 23. Nxf6 {[%clk
0:01:46.5]} 23... Kxf6 {[%clk 0:01:49]} 24. Rd1 {[%clk 0:01:45.3]} 24... Ke7
{[%clk 0:01:46]} 25. f3 {[%clk 0:01:43.5]} 25... Rd8 {[%clk 0:01:44.9]} 26. Rxd8
{[%clk 0:01:43.4]} 26... Kxd8 {[%clk 0:01:44.9]} 27. Kf2 {[%clk 0:01:44.1]}
27... Ke7 {[%clk 0:01:44.3]} 28. Ke3 {[%clk 0:01:44.2]} 28... f5 {[%clk
0:01:40.5]} 29. Ne2 {[%clk 0:01:41.1]} 29... Ke6 {[%clk 0:01:37.7]} 30. g3
{[%clk 0:01:38.7]} 30... c5 {[%clk 0:01:31.9]} 31. f4 {[%clk 0:01:37.1]} 31...
Bd5 {[%clk 0:01:25.9]} 32. b3 {[%clk 0:01:34.4]} 32... Bc6 {[%clk 0:01:22.2]}
33. h4 {[%clk 0:01:34]} 33... Be8 {[%clk 0:01:17.9]} 34. Ng1 {[%clk 0:01:29.9]}
34... Kd5 {[%clk 0:01:12.9]} 35. Nf3 {[%clk 0:01:28.4]} 35... exf4+ {[%clk
0:00:52.2]} 36. gxf4 {[%clk 0:01:29.3]} 36... c4 {[%clk 0:00:49.4]} 37. b4
{[%clk 0:01:14]} 37... Bc6 {[%clk 0:00:30.4]} 38. c3 {[%clk 0:01:12]} 38... Be8
{[%clk 0:00:22.3]} 39. a3 {[%clk 0:01:10.9]} 39... Bc6 {[%clk 0:00:22.2]} 40.
Ne5 {[%clk 0:01:09.8]} 40... Be8 {[%clk 0:00:20.7]} 41. Nf3 {[%clk 0:01:09.8]}
41... Bf7 {[%clk 0:00:18.1]} 42. Nd4 {[%clk 0:01:06.9]} 42... Be8 {[%clk
0:00:17.2]} 43. Nf3 {[%clk 0:01:03.2]} 1/2-1/2

[Event "Late-Titled-Tuesday-Blitz-August-29-2023"]
[Site "Chess.com"]
[Date "2023.08.29"]
[Round "5"]
[White "jefferyx"]
[Black "Sanan_Sjugirov"]
[Result "1-0"]
[WhiteElo "3028"]
[BlackElo "2855"]
[TimeControl "180+1"]
[EndTime "14:54:00 PDT"]
[Termination "jefferyx won on time"]

1. c4 {[%clk 0:03:00.9]} 1... Nf6 {[%clk 0:02:59.3]} 2. Nc3 {[%clk 0:03:00.6]}
2... e5 {[%clk 0:02:59.1]} 3. g3 {[%clk 0:03:01.1]} 3... Bb4 {[%clk 0:02:58.2]}
4. Bg2 {[%clk 0:03:01]} 4... O-O {[%clk 0:02:57.1]} 5. e4 {[%clk 0:03:01.5]}
5... Bxc3 {[%clk 0:02:35.4]} 6. bxc3 {[%clk 0:03:02.4]} 6... d6 {[%clk
0:02:21.6]} 7. d3 {[%clk 0:02:57.7]} 7... Nbd7 {[%clk 0:02:08.7]} 8. Ne2 {[%clk
0:02:54.5]} 8... Rb8 {[%clk 0:02:01]} 9. O-O {[%clk 0:02:54.3]} 9... a6 {[%clk
0:01:54.1]} 10. a4 {[%clk 0:02:53.8]} 10... b5 {[%clk 0:01:40.2]} 11. axb5
{[%clk 0:02:54.7]} 11... axb5 {[%clk 0:01:41.1]} 12. cxb5 {[%clk 0:02:55.6]}
12... Rxb5 {[%clk 0:01:41.4]} 13. f4 {[%clk 0:02:55.5]} 13... h6 {[%clk
0:01:36.3]} 14. h3 {[%clk 0:02:55.2]} 14... Re8 {[%clk 0:01:26.6]} 15. c4 {[%clk
0:02:41.2]} 15... Rb8 {[%clk 0:01:25.1]} 16. Be3 {[%clk 0:02:41.1]} 16... Bb7
{[%clk 0:01:20.4]} 17. Kh2 {[%clk 0:02:34.3]} 17... Ra8 {[%clk 0:01:18.4]} 18.
Qd2 {[%clk 0:02:19.4]} 18... Bc6 {[%clk 0:01:15.7]} 19. f5 {[%clk 0:02:15.4]}
19... Nh7 {[%clk 0:01:03]} 20. g4 {[%clk 0:02:12.8]} 20... Qh4 {[%clk
0:00:33.8]} 21. Ng1 {[%clk 0:02:08.9]} 21... Qe7 {[%clk 0:00:18.3]} 22. Nf3
{[%clk 0:02:08.2]} 22... Nhf6 {[%clk 0:00:16]} 23. Qc3 {[%clk 0:01:53.1]} 23...
Rxa1 {[%clk 0:00:15.2]} 24. Rxa1 {[%clk 0:01:54]} 24... Ra8 {[%clk 0:00:15.7]}
25. Rxa8+ {[%clk 0:01:39.8]} 25... Bxa8 {[%clk 0:00:16.6]} 26. Qa5 {[%clk
0:01:40.4]} 26... Qd8 {[%clk 0:00:17.1]} 27. Kg3 {[%clk 0:01:41]} 27... Bb7
{[%clk 0:00:13.5]} 28. h4 {[%clk 0:01:40.4]} 28... h5 {[%clk 0:00:04.2]} 29. g5
{[%clk 0:01:39.3]} 29... Ng4 {[%clk 0:00:03.9]} 30. Bg1 {[%clk 0:01:39]} 30...
Nc5 {[%clk 0:00:02.5]} 31. Qa3 {[%clk 0:01:34.2]} 31... Qd7 {[%clk 0:00:01.5]}
32. Bh3 {[%clk 0:01:32.4]} 32... Bxe4 {[%clk 0:00:01.6]} 33. Bxg4 {[%clk
0:01:02.7]} 33... hxg4 {[%clk 0:00:01.9]} 34. dxe4 {[%clk 0:01:03.6]} 34...
Nxe4+ {[%clk 0:00:02.1]} 35. Kxg4 {[%clk 0:01:03.8]} 35... g6 {[%clk 0:00:02.7]}
36. Qa8+ {[%clk 0:01:00.6]} 36... Kg7 {[%clk 0:00:03.1]} 37. Qxe4 {[%clk
0:01:01.5]} 1-0

[Event "Late-Titled-Tuesday-Blitz-August-29-2023"]
[Site "Chess.com"]
[Date "2023.08.29"]
[Round "5"]
[White "BogdanDeac"]
[Black "cassoulet"]
[Result "1-0"]
[WhiteElo "3021"]
[BlackElo "2729"]
[TimeControl "180+1"]
[EndTime "14:54:00 PDT"]
[Termination "BogdanDeac won by checkmate"]

1. b3 {[%clk 0:03:00.9]} 1... Nf6 {[%clk 0:02:54.6]} 2. Bb2 {[%clk 0:03:01.5]}
2... e6 {[%clk 0:02:53.8]} 3. Nf3 {[%clk 0:03:01.5]} 3... Be7 {[%clk 0:02:54.4]}
4. c4 {[%clk 0:03:01.5]} 4... b6 {[%clk 0:02:54.9]} 5. g3 {[%clk 0:03:01.7]}
5... Bb7 {[%clk 0:02:55.5]} 6. Bg2 {[%clk 0:03:02.4]} 6... d5 {[%clk 0:02:56.1]}
7. cxd5 {[%clk 0:03:00.3]} 7... exd5 {[%clk 0:02:55.8]} 8. O-O {[%clk
0:03:00.6]} 8... O-O {[%clk 0:02:56.4]} 9. d4 {[%clk 0:03:00.6]} 9... c5 {[%clk
0:02:54.3]} 10. Nc3 {[%clk 0:02:59.3]} 10... Nc6 {[%clk 0:02:53.1]} 11. dxc5
{[%clk 0:02:59]} 11... bxc5 {[%clk 0:02:53.2]} 12. Rc1 {[%clk 0:02:59.2]} 12...
Rc8 {[%clk 0:02:50.5]} 13. Na4 {[%clk 0:02:58.9]} 13... Nb8 {[%clk 0:02:37.8]}
14. Bxf6 {[%clk 0:02:54.7]} 14... Bxf6 {[%clk 0:02:34]} 15. Nxc5 {[%clk
0:02:52.1]} 15... Ba8 {[%clk 0:02:33.7]} 16. Qd2 {[%clk 0:02:51.5]} 16... Qb6
{[%clk 0:02:28.1]} 17. Nd3 {[%clk 0:02:40.3]} 17... Nc6 {[%clk 0:02:23.3]} 18.
Nf4 {[%clk 0:02:37.1]} 18... Ne7 {[%clk 0:02:16.6]} 19. Nh5 {[%clk 0:02:24.9]}
19... g6 {[%clk 0:02:15.9]} 20. Nxf6+ {[%clk 0:02:24.7]} 20... Qxf6 {[%clk
0:02:16.8]} 21. Rxc8 {[%clk 0:02:19.4]} 21... Rxc8 {[%clk 0:02:17.7]} 22. Rc1
{[%clk 0:02:19.4]} 22... Qa6 {[%clk 0:02:02.1]} 23. Rxc8+ {[%clk 0:02:14.8]}
23... Qxc8 {[%clk 0:02:03]} 24. Nd4 {[%clk 0:02:12.8]} 24... Qc5 {[%clk
0:02:00.4]} 25. e3 {[%clk 0:02:08.3]} 25... Bb7 {[%clk 0:01:59.5]} 26. b4 {[%clk
0:02:03.5]} 26... Qd6 {[%clk 0:01:50.2]} 27. Qc3 {[%clk 0:02:03.4]} 27... Nc6
{[%clk 0:01:46.5]} 28. a3 {[%clk 0:01:55.4]} 28... Ne5 {[%clk 0:01:42.1]} 29.
Nb5 {[%clk 0:01:50.5]} 29... Qf6 {[%clk 0:01:35.8]} 30. f4 {[%clk 0:01:27.4]}
30... Qb6 {[%clk 0:01:19.8]} 31. Qxe5 {[%clk 0:01:26.3]} 31... Qxb5 {[%clk
0:01:19.9]} 32. Qb8+ {[%clk 0:01:25.9]} 32... Kg7 {[%clk 0:01:19.7]} 33. Qxa7
{[%clk 0:01:26.4]} 33... Qc6 {[%clk 0:01:14.2]} 34. Qc5 {[%clk 0:01:20.9]} 34...
Qa4 {[%clk 0:01:11.2]} 35. Qc3+ {[%clk 0:00:57.4]} 35... Kh6 {[%clk 0:01:11.1]}
36. Bf3 {[%clk 0:00:41.3]} 36... Qe8 {[%clk 0:01:02.4]} 37. g4 {[%clk
0:00:36.1]} 37... f6 {[%clk 0:00:57.7]} 38. Qxf6 {[%clk 0:00:27]} 38... Qxe3+
{[%clk 0:00:56.9]} 39. Kg2 {[%clk 0:00:27.6]} 39... Qd2+ {[%clk 0:00:50.4]} 40.
Kh3 {[%clk 0:00:27.6]} 40... Bc8 {[%clk 0:00:44.5]} 41. Qf8# {[%clk 0:00:24.4]}
1-0

[Event "Late-Titled-Tuesday-Blitz-August-29-2023"]
[Site "Chess.com"]
[Date "2023.08.29"]
[Round "5"]
[White "NotFischer"]
[Black "kinga2008"]
[Result "0-1"]
[WhiteElo "2255"]
[BlackElo "2410"]
[TimeControl "180+1"]
[EndTime "14:54:01 PDT"]
[Termination "kinga2008 won on time"]

1. e4 {[%clk 0:03:00.9]} 1... c5 {[%clk 0:02:51.1]} 2. Nf3 {[%clk 0:03:00.4]}
2... Nc6 {[%clk 0:02:44.2]} 3. Bb5 {[%clk 0:02:54.3]} 3... e5 {[%clk 0:02:45.1]}
4. d3 {[%clk 0:02:48.7]} 4... d6 {[%clk 0:02:34.3]} 5. Bxc6+ {[%clk 0:02:47.4]}
5... bxc6 {[%clk 0:02:33.7]} 6. O-O {[%clk 0:02:47]} 6... g6 {[%clk 0:02:33.3]}
7. b3 {[%clk 0:02:42.4]} 7... Bg7 {[%clk 0:02:33]} 8. Nbd2 {[%clk 0:02:41]} 8...
Ne7 {[%clk 0:02:31.1]} 9. Bb2 {[%clk 0:02:40.4]} 9... O-O {[%clk 0:02:27.3]} 10.
Nc4 {[%clk 0:02:39.6]} 10... Qc7 {[%clk 0:02:25.3]} 11. a4 {[%clk 0:02:31.1]}
11... Be6 {[%clk 0:02:24.6]} 12. Qd2 {[%clk 0:02:00.9]} 12... Rad8 {[%clk
0:02:22.3]} 13. Bc3 {[%clk 0:01:57]} 13... Bxc4 {[%clk 0:02:15.9]} 14. bxc4
{[%clk 0:01:43]} 14... Qd7 {[%clk 0:01:49.2]} 15. Ba5 {[%clk 0:01:39.1]} 15...
Rb8 {[%clk 0:01:44.7]} 16. h3 {[%clk 0:01:18.5]} 16... f5 {[%clk 0:01:34.1]} 17.
Rfe1 {[%clk 0:00:57]} 17... fxe4 {[%clk 0:01:32.2]} 18. Rxe4 {[%clk 0:00:56.3]}
18... Rxf3 {[%clk 0:01:31.6]} 19. gxf3 {[%clk 0:00:54.4]} 19... Qxh3 {[%clk
0:01:31.1]} 20. Qg5 {[%clk 0:00:47.6]} 20... Nf5 {[%clk 0:01:21.9]} 21. Qg2
{[%clk 0:00:46]} 21... Qh5 {[%clk 0:01:18.5]} 22. Qg4 {[%clk 0:00:43]} 22... Qh6
{[%clk 0:01:18]} 23. Rd1 {[%clk 0:00:32.9]} 23... d5 {[%clk 0:01:17.2]} 24. Bd2
{[%clk 0:00:30.9]} 24... Qh5 {[%clk 0:01:11.9]} 25. cxd5 {[%clk 0:00:20.7]}
25... cxd5 {[%clk 0:01:10]} 26. Qxh5 {[%clk 0:00:20.8]} 26... gxh5 {[%clk
0:01:09.5]} 27. Ree1 {[%clk 0:00:20.9]} 27... Nd4 {[%clk 0:01:09.9]} 28. Kg2
{[%clk 0:00:19.4]} 28... Nxc2 {[%clk 0:01:10.1]} 29. Rg1 {[%clk 0:00:19.2]}
29... Rb3 {[%clk 0:01:08.7]} 30. Kh2 {[%clk 0:00:14.2]} 30... Kf7 {[%clk
0:01:01.9]} 31. Rg5 {[%clk 0:00:13.1]} 31... Rxd3 {[%clk 0:01:01]} 32. Rxh5
{[%clk 0:00:10.8]} 32... Nd4 {[%clk 0:01:01.1]} 33. Rxh7 {[%clk 0:00:08.5]}
33... Nxf3+ {[%clk 0:00:59.6]} 34. Kg2 {[%clk 0:00:05.6]} 34... Nxd2 {[%clk
0:00:59.7]} 35. f4 {[%clk 0:00:01.8]} 35... e4 {[%clk 0:00:58.1]} 0-1

[Event "Late-Titled-Tuesday-Blitz-August-29-2023"]
[Site "Chess.com"]
[Date "2023.08.29"]
[Round "5"]
[White "cottage_cheese"]
[Black "DishonorOnYourCow"]
[Result "0-1"]
[WhiteElo "2294"]
[BlackElo "2525"]
[TimeControl "180+1"]
[EndTime "14:54:02 PDT"]
[Termination "DishonorOnYourCow won on time"]

1. e4 {[%clk 0:03:00.9]} 1... c5 {[%clk 0:02:57.4]} 2. Nf3 {[%clk 0:02:59.8]}
2... d6 {[%clk 0:02:57.4]} 3. d4 {[%clk 0:02:58.6]} 3... cxd4 {[%clk 0:02:57.2]}
4. Nxd4 {[%clk 0:02:58.2]} 4... Nf6 {[%clk 0:02:58.1]} 5. Nc3 {[%clk 0:02:57.9]}
5... Bd7 {[%clk 0:02:58.6]} 6. g3 {[%clk 0:02:51.1]} 6... Nc6 {[%clk 0:02:58]}
7. Bg2 {[%clk 0:02:48.3]} 7... g6 {[%clk 0:02:58]} 8. O-O {[%clk 0:02:35.5]}
8... Bg7 {[%clk 0:02:58.1]} 9. Nxc6 {[%clk 0:02:04.7]} 9... Bxc6 {[%clk
0:02:57.7]} 10. Be3 {[%clk 0:02:02]} 10... O-O {[%clk 0:02:56.7]} 11. h3 {[%clk
0:02:00.8]} 11... b5 {[%clk 0:02:52.2]} 12. a3 {[%clk 0:01:59.8]} 12... Qc8
{[%clk 0:02:43.3]} 13. Qd2 {[%clk 0:01:36.6]} 13... a5 {[%clk 0:02:38.7]} 14.
Qd3 {[%clk 0:01:08]} 14... b4 {[%clk 0:02:36.3]} 15. axb4 {[%clk 0:01:06.7]}
15... axb4 {[%clk 0:02:37.2]} 16. Ne2 {[%clk 0:01:02.4]} 16... Qb7 {[%clk
0:02:32]} 17. f3 {[%clk 0:00:54.1]} 17... Nd7 {[%clk 0:02:26]} 18. Nd4 {[%clk
0:00:51.3]} 18... Nc5 {[%clk 0:02:05.9]} 19. Qd2 {[%clk 0:00:51]} 19... Bd7
{[%clk 0:02:00.8]} 20. Kh2 {[%clk 0:00:34.7]} 20... Ne6 {[%clk 0:01:34.5]} 21.
Nxe6 {[%clk 0:00:27.6]} 21... Bxe6 {[%clk 0:01:35.4]} 22. Bd4 {[%clk 0:00:27.1]}
22... Rfc8 {[%clk 0:01:25.4]} 23. Bxg7 {[%clk 0:00:24.6]} 23... Kxg7 {[%clk
0:01:25.9]} 24. f4 {[%clk 0:00:22.4]} 24... Qb6 {[%clk 0:01:17.1]} 25. f5 {[%clk
0:00:09.3]} 25... Bc4 {[%clk 0:01:16]} 26. fxg6 {[%clk 0:00:08.4]} 26... Bxf1
{[%clk 0:01:11.3]} 27. Rxf1 {[%clk 0:00:07.5]} 27... hxg6 {[%clk 0:01:11]} 28.
Qf4 {[%clk 0:00:05.4]} 28... Rf8 {[%clk 0:01:09.3]} 29. e5 {[%clk 0:00:04.6]}
29... Rad8 {[%clk 0:01:03.6]} 30. e6 {[%clk 0:00:02.7]} 30... fxe6 {[%clk
0:00:56.5]} 31. Qg5 {[%clk 0:00:02.6]} 31... Rxf1 {[%clk 0:00:54.9]} 32. Bxf1
{[%clk 0:00:02.5]} 32... Qf2+ {[%clk 0:00:54.1]} 33. Bg2 {[%clk 0:00:03.1]}
33... Qf6 {[%clk 0:00:54.3]} 34. Qh4 {[%clk 0:00:02.2]} 34... Qxh4 {[%clk
0:00:54.1]} 0-1

[Event "Late-Titled-Tuesday-Blitz-August-29-2023"]
[Site "Chess.com"]
[Date "2023.08.29"]
[Round "5"]
[White "Real_taiatai"]
[Black "GM_shahin"]
[Result "0-1"]
[WhiteElo "2525"]
[BlackElo "2716"]
[TimeControl "180+1"]
[EndTime "14:54:06 PDT"]
[Termination "GM_shahin won by resignation"]

1. d4 {[%clk 0:03:00.9]} 1... d5 {[%clk 0:02:59.5]} 2. c4 {[%clk 0:03:00.7]}
2... e6 {[%clk 0:03:00]} 3. Nf3 {[%clk 0:03:00.8]} 3... Nf6 {[%clk 0:02:58.8]}
4. g3 {[%clk 0:03:01.3]} 4... dxc4 {[%clk 0:02:57.6]} 5. Bg2 {[%clk 0:03:00.6]}
5... Bb4+ {[%clk 0:02:56.1]} 6. Bd2 {[%clk 0:02:48.1]} 6... c5 {[%clk
0:02:54.7]} 7. O-O {[%clk 0:02:45.8]} 7... O-O {[%clk 0:02:50.6]} 8. a3 {[%clk
0:02:42]} 8... Bxd2 {[%clk 0:02:47.9]} 9. Nbxd2 {[%clk 0:02:42.9]} 9... cxd4
{[%clk 0:02:37.8]} 10. Nxc4 {[%clk 0:02:42.7]} 10... Nc6 {[%clk 0:02:38.2]} 11.
b4 {[%clk 0:02:37.3]} 11... a6 {[%clk 0:02:08.3]} 12. Rc1 {[%clk 0:02:35.6]}
12... Re8 {[%clk 0:02:05]} 13. Nfe5 {[%clk 0:02:32.6]} 13... Nxe5 {[%clk
0:02:03.6]} 14. Nxe5 {[%clk 0:02:32.4]} 14... a5 {[%clk 0:01:40]} 15. Rc4 {[%clk
0:02:30]} 15... axb4 {[%clk 0:01:36.5]} 16. axb4 {[%clk 0:02:29.3]} 16... Qd6
{[%clk 0:01:35.4]} 17. Qxd4 {[%clk 0:02:28.6]} 17... Qxd4 {[%clk 0:01:29.5]} 18.
Rxd4 {[%clk 0:02:29.5]} 18... Nd5 {[%clk 0:01:26.8]} 19. Bxd5 {[%clk 0:02:17.5]}
19... exd5 {[%clk 0:01:25.9]} 20. Rxd5 {[%clk 0:02:17]} 20... f6 {[%clk
0:01:25.2]} 21. Nc4 {[%clk 0:02:14.1]} 21... Bh3 {[%clk 0:01:21.6]} 22. Rfd1
{[%clk 0:02:04]} 22... Rxe2 {[%clk 0:01:20]} 23. R5d2 {[%clk 0:01:50.4]} 23...
Rxd2 {[%clk 0:01:13.7]} 24. Nxd2 {[%clk 0:01:51.3]} 24... Rd8 {[%clk 0:01:13.8]}
25. f3 {[%clk 0:01:03.6]} 25... Bf5 {[%clk 0:01:12.1]} 26. Kf2 {[%clk
0:00:39.6]} 26... Bc2 {[%clk 0:00:56.9]} 27. Ra1 {[%clk 0:00:27.5]} 27... Rxd2+
{[%clk 0:00:54.2]} 28. Ke3 {[%clk 0:00:28.4]} 28... Rxh2 {[%clk 0:00:54.6]} 29.
Ra2 {[%clk 0:00:28.8]} 29... h5 {[%clk 0:00:46.5]} 30. Kd4 {[%clk 0:00:28.5]}
30... g5 {[%clk 0:00:46.4]} 31. Kc5 {[%clk 0:00:27.6]} 31... h4 {[%clk
0:00:43.9]} 32. gxh4 {[%clk 0:00:27.2]} 32... gxh4 {[%clk 0:00:44.8]} 33. Kd4
{[%clk 0:00:16.7]} 33... h3 {[%clk 0:00:42.4]} 34. Ke3 {[%clk 0:00:17.3]} 34...
Rg2 {[%clk 0:00:42]} 35. Ra5 {[%clk 0:00:16]} 35... Bg6 {[%clk 0:00:39]} 36. Rh5
{[%clk 0:00:16.9]} 36... Bxh5 {[%clk 0:00:38.9]} 0-1